bitfinex-derivatives/quotes_SOLF0:USTF0_20240902
["timestamp","ask_amount","ask_price","bid_price","bid_amount"]
[1725291826019,3.81232148,132.96,132.94,0.04844218]
[1725291831820,7.58817853,132.96,132.94,0.04844218]
[1725291832817,0.05152148,132.96,132.95,3.761]
[1725291833021,0.05152148,132.96,132.95,15.301]
[1725291834920,11.54,133.02,132.99,3.7598]
[1725291835121,12.8753,133.05,132.99,3.7598]
[1725291835520,3.759,133.02,132.94,2.7612]
[1725291835720,11.54,132.99,132.9,3.82362414]
[1725291835922,0.05661779,132.96,132.93,0.05661896]
[1725291836120,0.05661779,132.96,132.93,3.81791896]
[1725291837520,0.05661779,132.96,132.94,3.761]
[1725291841727,0.05661779,132.96,132.95,3.761]
[1725291843928,0.05661779,132.96,132.94,3.7611]
[1725291845027,3.81731779,132.96,132.94,3.7611]
[1725291845227,3.81731779,132.96,132.93,3.81801896]
[1725291845725,7.5141,133.09,132.95,11.54]
[1725291846031,11.54,133.05,132.97,11.54]
[1725291846223,3.7591,133.02,132.97,11.54]
[1725291846619,7.45917667,133.02,132.97,11.54]
[1725291847024,0.05172411,133.01,132.98,0.04838059]
[1725291848429,0.05172411,133.01,132.99,3.7597]
[1725291850120,0.05172411,133.01,133.0,3.7595]
[1725291850930,0.05172411,133.01,133.0,19.03812696]
[1725291851125,1.4452,133.09,133.0,15.27862696]
[1725291851326,1.4452,133.09,133.03,11.54]
[1725291851535,3.7578,133.07,133.03,11.54]
[1725291851733,3.7578,133.07,133.03,15.2985]
[1725291852126,3.7578,133.07,133.04,0.04941679]
[1725291852329,0.05778876,133.06,133.04,3.80761679]
[1725291853725,3.81568876,133.06,133.04,3.80761679]
[1725291854027,3.81568876,133.06,133.04,0.04941679]
[1725291855034,3.7581,133.05,133.04,0.04941679]
[1725291859554,3.81588876,133.06,133.04,0.04941679]
[1725291860258,0.05778876,133.06,133.04,0.04941679]
[1725291860552,0.05778876,133.06,133.04,3.80771679]
[1725291863756,0.05778876,133.06,133.05,3.7581]
[1725291868054,0.05778876,133.06,133.04,15.34771679]
[1725291870055,3.81568876,133.06,133.04,15.34771679]
[1725291872766,3.7581,133.05,133.04,0.04941679]
[1725291875460,3.81578876,133.06,133.04,0.04941679]
[1725291875966,3.7581,133.05,133.04,0.04941679]
[1725291881267,3.7581,133.05,132.97,1.3875]
[1725291881268,0.05778876,133.06,132.97,5.1478]
[1725291881465,0.05778876,133.06,132.98,11.54]
[1725291881466,14.3035,133.06,132.98,11.54]
[1725291882067,3.7597,133.0,132.98,11.54]
[1725291882264,3.8092105,133.0,132.98,11.59300024]
[1725291885774,3.7598,132.99,132.98,11.59300024]
[1725291886872,0.0495105,133.0,132.99,3.7598]
[1725291887078,0.0495105,133.0,132.99,11.54]
[1725291887573,0.0495105,133.0,132.98,0.05300024]
[1725291887777,0.0495105,133.0,132.99,11.54]
[1725291888570,3.8090105,133.0,132.99,11.54]
[1725291893575,0.0495105,133.0,132.99,11.54]
[1725291897079,3.8090105,133.0,132.99,11.54]
[1725291899774,3.7598,132.99,132.98,0.05300024]
[1725291900575,3.7614,132.94,132.87,18.57934109]
[1725291900780,3.7614,132.94,132.88,4.1503]
[1725291900981,3.7614,132.94,132.92,11.54]
[1725291901483,3.761,132.95,132.92,11.54]
[1725291901684,3.81077048,132.95,132.92,11.59557373]
[1725291902183,3.81077048,132.95,132.94,11.54]
[1725291902184,0.04977048,132.95,132.94,11.54]
[1725291903284,1.12161322,132.99,132.94,11.54]
[1725291903488,3.7608,132.96,132.94,11.54]
[1725291904187,1.12161322,132.99,132.94,11.54]
[1725291904383,0.05599472,132.98,132.95,0.05343535]
[1725291904785,3.7609,132.96,132.95,0.05343535]
[1725291906381,0.05599472,132.98,132.97,3.7604]
[1725291906583,0.05599472,132.98,132.95,11.59343535]
[1725291906981,3.7604,132.97,132.95,0.05343535]
[1725291907285,3.7604,132.97,132.95,11.59343535]
[1725291907481,7.522,133.15,132.99,57.7]
[1725291907682,2.783,133.16,133.06,11.54]
[1725291907683,1.08898692,133.14,133.06,11.54]
[1725291907893,11.54,133.15,133.07,11.54]
[1725291908197,3.7558,133.14,133.07,11.54]
[1725291908385,0.04977265,133.12,133.09,0.05060306]
[1725291908587,3.80617265,133.12,133.09,0.05060306]
[1725291909894,11.54,133.11,133.03,11.54]
[1725291910083,11.54,133.1,133.03,11.54]
[1725291910292,11.54,133.08,133.01,11.54]
[1725291910891,0.05710628,133.06,133.03,0.05159571]
[1725291911185,0.05710628,133.06,133.03,3.81009571]
[1725291911593,0.05710628,133.06,133.04,3.7582]
[1725291911781,0.05710628,133.06,133.03,11.59159571]
[1725291913083,0.05710628,133.06,133.04,3.7584]
[1725291914083,0.05710628,133.06,133.03,15.35019571]
[1725291914482,0.05710628,133.06,133.03,11.59159571]
[1725291916287,0.05710628,133.06,133.05,3.7581]
[1725291916885,0.05710628,133.06,133.03,0.05159571]
[1725291917091,0.05710628,133.06,133.03,11.59159571]
[1725291917290,0.05710628,133.06,133.03,0.05159571]
[1725291917682,3.7584,133.04,133.03,0.05159571]
[1725291921590,7.52221267,133.04,133.03,0.05159571]
[1725291921793,3.7584,133.04,133.03,0.05159571]
[1725291922395,7.50003722,133.04,133.03,0.05159571]
[1725291924092,3.7595,133.0,132.97,3.7603]
[1725291924296,11.54,133.03,132.96,11.54]
[1725291924686,1.3338,133.02,132.96,11.54]
[1725291925085,1.4098,133.01,132.96,11.54]
[1725291925293,3.7602,132.98,132.96,11.54]
[1725291925795,3.7604,132.97,132.96,11.54]
[1725291926896,3.7602,132.98,132.96,11.54]
[1725291927898,3.7604,132.97,132.96,11.54]
[1725291929196,3.7604,132.97,132.95,0.05089452]
[1725291929400,3.81029421,132.97,132.95,0.05089452]
[1725291930099,3.7607,132.96,132.95,0.05089452]
[1725291930992,3.7607,132.96,132.92,3.8053741]
[1725291930993,0.04989421,132.97,132.92,3.8053741]
[1725291931205,0.04989421,132.97,132.94,11.54]
[1725291931389,3.75347751,132.97,132.94,11.54]
[1725291931589,3.7605,132.97,132.94,11.54]
[1725291931791,7.61363401,132.97,132.94,15.3012]
[1725291931992,7.67143285,132.97,132.94,11.58754035]
[1725291932291,3.81829884,132.97,132.94,15.34854035]
[1725291932491,0.05779884,132.97,132.94,11.58754035]
[1725291932698,0.05779884,132.97,132.95,11.54]
[1725291932895,0.05779884,132.97,132.96,3.7607]
[1725291933400,0.05779884,132.97,132.95,11.54]
[1725291933593,0.05779884,132.97,132.95,15.3007]
[1725291934000,0.05779884,132.97,132.95,11.54]
[1725291934888,0.05779884,132.97,132.96,3.7607]
[1725291941898,0.05779884,132.97,132.94,0.04754035]
[1725291943303,3.81839884,132.97,132.94,3.80864035]
[1725291944001,0.05779884,132.97,132.95,3.7608]
[1725291944391,12.8741,133.05,132.96,15.3007]
[1725291944597,3.75169198,133.04,132.99,11.54]
[1725291944796,1.3341,133.05,132.99,11.54]
[1725291945003,3.85283501,133.04,132.99,11.54]
[1725291945201,11.54,133.07,132.99,15.31650774]
[1725291945403,11.54,133.07,133.01,11.54]
[1725291945905,0.05755756,133.04,133.01,11.59544014]
[1725291946303,0.05755756,133.04,133.01,15.35454014]
[1725291948006,7.58155735,133.04,133.01,3.81454014]
[1725291948208,3.81595756,133.04,133.01,3.81454014]
[1725291948799,7.50684754,133.04,133.01,3.81454014]
[1725291949100,3.74844754,133.04,133.01,0.05544014]
[1725291949507,3.7589,133.03,133.01,0.05544014]
[1725291949806,3.74844754,133.04,133.01,0.05544014]
[1725291950103,3.7589,133.03,133.01,0.05544014]
[1725291951007,3.81605756,133.04,133.01,0.05544014]
[1725291951502,3.81605756,133.04,133.01,3.81454014]
[1725291955398,0.05755756,133.04,133.01,0.05544014]
[1725291955600,0.05755756,133.04,133.01,28.91544014]
[1725291956111,0.05755756,133.04,133.03,3.7587]
[1725291966013,0.05755756,133.04,133.03,32.6187]
[1725291966435,0.05755756,133.04,133.03,3.7587]
[1725291967616,0.05755756,133.04,133.02,3.7588]
[1725291969226,0.05755756,133.04,133.01,28.91544014]
[1725291969227,7.522,133.16,133.03,28.86]
[1725291969409,3.7567,133.11,133.07,32.6174]
[1725291969611,4.1628,133.14,133.07,32.6174]
[1725291969807,4.1628,133.14,133.03,3.75272453]
[1725291970010,11.54,133.12,133.05,11.54]
[1725291970414,3.84629838,133.11,133.06,11.54]
[1725291970612,0.04840304,133.1,133.07,0.04819671]
[1725291970812,3.846975,133.1,133.07,0.04819671]
[1725291971016,0.04840304,133.1,133.07,3.80559671]
[1725291972609,0.04840304,133.1,133.08,3.7572]
[1725291972920,0.04840304,133.1,133.07,0.04819671]
[1725291973117,0.04840304,133.1,133.08,3.7571]
[1725291973513,0.04840304,133.1,133.07,28.92819671]
[1725291973920,0.04840304,133.1,133.09,3.757]
[1725291977120,0.04840304,133.1,133.08,3.7572]
[1725291978108,0.04840304,133.1,133.07,32.68569671]
[1725291979118,0.04840304,133.1,133.07,28.92819671]
[1725291979617,0.04840304,133.1,133.07,0.04819671]
[1725291979618,3.7573,133.08,133.07,0.04819671]
[1725291979820,28.88,133.1,133.01,150.32]
[1725291980224,1.3422,133.09,132.99,76.63509593]
[1725291980411,5.19044353,133.09,132.99,76.63509593]
[1725291980620,1.3245,133.08,132.99,76.63509593]
[1725291981016,0.05667126,133.05,133.03,0.0481259]
[1725291982015,3.7586,133.04,133.03,0.0481259]
[1725291982427,28.93667126,133.05,132.86,253.88]
[1725291982719,28.88,133.07,132.86,253.88]
[1725291982720,28.88,133.03,132.94,28.88]
[1725291982926,2.809,133.02,132.94,28.88]
[1725291983327,3.7603,132.98,132.97,0.0559433]
[1725291983523,7.55577504,132.98,132.97,0.0559433]
[1725291983718,3.79547504,132.98,132.97,0.0559433]
[1725291983918,0.04777222,132.99,132.97,0.0559433]
[1725291985720,0.04777222,132.99,132.97,3.8162433]
[1725291986024,0.04777222,132.99,132.97,28.9359433]
[1725291987314,0.04777222,132.99,132.98,3.7601]
[1725291987718,1.3463,133.06,132.98,3.76795247]
[1725291988024,1.3463,133.06,133.01,28.88]
[1725291988722,3.80947717,133.05,133.02,0.054526]
[1725291988926,0.05107717,133.05,133.02,0.054526]
[1725291990327,3.80927717,133.05,133.02,3.813326]
[1725291990528,0.05107717,133.05,133.02,0.054526]
[1725291991526,3.80937717,133.05,133.02,3.813326]
[1725291993523,0.05107717,133.05,133.03,3.7586]
[1725291996532,0.05107717,133.05,133.04,3.7584]
[1725291998528,0.05107717,133.05,133.02,0.054526]
[1725292000730,3.7586,133.04,133.02,0.054526]
[1725292002839,0.05107717,133.05,133.02,0.054526]
[1725292003139,0.05107717,133.05,133.03,28.88]
[1725292003434,0.05107717,133.05,133.04,3.7584]
[1725292005533,7.5057,133.24,133.04,28.88]
[1725292005740,1.3334,133.18,133.12,28.88]
[1725292006035,3.73308779,133.17,133.13,3.7557]
[1725292006540,3.73308779,133.17,133.12,28.88]
[1725292006939,0.04755057,133.16,133.14,0.05094399]
[1725292007441,0.04755057,133.16,133.14,3.80634399]
[1725292007941,0.04755057,133.16,133.14,0.05094399]
[1725292008841,3.80265057,133.16,133.14,0.05094399]
[1725292009143,0.04755057,133.16,133.14,0.05094399]
[1725292011038,3.80255057,133.16,133.14,0.05094399]
[1725292011234,0.04755057,133.16,133.14,0.05094399]
[1725292011935,3.7553,133.15,133.14,0.05094399]
[1725292012538,28.88,133.15,132.97,18.43205563]
[1725292012729,28.88,133.15,132.98,28.88]
[1725292012730,28.88,133.09,132.98,28.88]
[1725292012935,28.88,133.09,132.98,32.55309317]
[1725292013139,28.88,133.09,133.0,3.7595]
[1725292013140,3.7586,133.04,133.0,3.7595]
[1725292013339,7.47994105,133.04,133.0,3.7595]
[1725292013739,3.7587,133.03,133.01,0.057645]
[1725292014132,3.80729821,133.03,133.01,0.057645]
[1725292014443,3.80729821,133.03,132.79,7.74502513]
[1725292014444,36.08,133.02,132.79,7.74502513]
[1725292014634,36.08,132.97,132.87,2.9064]
[1725292014838,3.69089679,132.96,132.87,8.09663339]
[1725292015046,36.08,132.97,132.89,3.7625]
[1725292015347,3.74953018,132.96,132.88,36.08]
[1725292015549,0.05568009,132.94,132.92,0.0516259]
[1725292016144,0.05568009,132.94,132.92,3.8133259]
[1725292016643,3.74200827,133.01,132.92,36.1316259]
[1725292016839,3.74200827,133.01,132.92,36.08]
[1725292017641,0.05513139,132.98,132.95,0.05245693]
[1725292018548,3.81523139,132.98,132.95,0.05245693]
[1725292021042,7.85474736,133.13,132.97,36.08]
[1725292021245,2.7154,133.1,132.99,36.08]
[1725292021442,3.73467699,133.09,133.01,36.08]
[1725292021841,2.7154,133.1,133.01,36.08]
[1725292022047,1.3844,133.1,133.01,36.08]
[1725292022242,36.08,133.14,133.04,36.08]
[1725292022447,39.87371286,133.14,133.04,36.08]
[1725292022951,0.0508528,133.07,132.99,39.90830713]
[1725292023248,3.7581,133.06,133.04,0.05511654]
[1725292023444,0.0508528,133.07,133.04,0.05511654]
[1725292023744,36.08,133.09,133.04,0.05511654]
[1725292023944,0.04990028,133.07,133.04,0.05511654]
[1725292024149,3.8456423,133.06,133.04,0.05511654]
[1725292024343,3.7581,133.05,133.04,0.05511654]
[1725292031259,0.04990028,133.07,133.04,0.05511654]
[1725292031454,0.04990028,133.07,133.06,36.08]
[1725292031649,0.04990028,133.07,133.06,39.91013904]
[1725292032055,0.04990028,133.07,133.06,36.08]
[1725292032455,0.04990028,133.07,133.06,39.8378]
[1725292032854,0.04990028,133.07,133.06,3.7578]
[1725292033751,0.04990028,133.07,133.05,3.84861923]
[1725292034960,0.04990028,133.07,133.06,3.7578]
[1725292035258,0.04990028,133.07,133.04,0.05511654]
[1725292035461,3.75056284,133.06,133.04,0.05511654]
[1725292035959,3.7581,133.05,133.04,0.05511654]
[1725292036860,3.7587,133.03,132.98,131.98942202]
[1725292037060,3.75056284,133.06,132.98,135.66014639]
[1725292037258,37.425,133.09,132.98,135.66014639]
[1725292037456,3.7588,133.03,132.98,135.66014639]
[1725292037862,0.05163027,133.02,132.99,0.04742593]
[1725292039262,0.05163027,133.02,133.0,3.7594]
[1725292039766,0.05163027,133.02,132.99,0.04742593]
[1725292041372,3.84980608,133.01,132.96,150.34]
[1725292041668,0.05163027,133.02,132.92,36.08]
[1725292041865,3.702821,133.02,132.94,3.7611]
[1725292042062,36.08,133.03,132.92,39.8816882]
[1725292042269,39.78967741,133.03,132.92,39.8816882]
[1725292042462,3.7603,132.98,132.92,39.8816882]
[1725292042669,0.05489633,132.99,132.96,0.05511448]
[1725292042866,0.05489633,132.99,132.96,3.81561448]
[1725292043069,3.70967741,133.03,132.96,3.81561448]
[1725292043271,1.4587,133.04,132.96,3.81561448]
[1725292043569,3.81277429,132.99,132.96,3.7605]
[1725292043865,3.81277429,132.99,132.96,3.81546409]
[1725292044073,0.05277429,132.99,132.97,3.7604]
[1725292045171,0.05277429,132.99,132.98,3.7601]
[1725292046566,10.43715696,133.22,132.96,37.5111]
[1725292046567,225.0,133.11,132.96,37.5111]
[1725292046765,1.4613,133.1,132.98,36.08]
[1725292046969,1.4613,133.1,133.0,36.08]
[1725292047169,3.7579,133.06,133.0,36.08]
[1725292047366,3.7579,133.06,133.02,3.7588]
[1725292047671,0.05081841,133.05,133.03,0.05281922]
[1725292047874,0.05780574,133.05,133.03,3.81131922]
[1725292048169,0.05780574,133.05,132.89,7.5249]
[1725292048370,36.08,133.02,132.91,36.08]
[1725292049064,39.90605753,133.02,132.91,3.74595626]
[1725292049371,0.05184627,132.98,132.95,0.05033365]
[1725292049569,3.7608,132.96,132.95,0.05033365]
[1725292050374,0.05184627,132.98,132.95,0.05033365]
[1725292050869,0.05184627,132.98,132.95,3.81113365]
[1725292051471,0.05184627,132.98,132.97,3.7604]
[1725292056278,0.05184627,132.98,132.96,3.7606]
[1725292056669,0.05184627,132.98,132.95,0.05033365]
[1725292057675,0.05184627,132.98,132.96,3.7604]
[1725292057880,0.05184627,132.98,132.95,0.05033365]
[1725292058981,3.7606,132.97,132.95,0.05033365]
[1725292059672,3.7607,132.96,132.95,0.05033365]
[1725292059875,3.79352165,132.97,132.92,3.7617]
[1725292060081,36.08,133.0,132.92,3.7617]
[1725292060277,3.761,132.95,132.92,3.7617]
[1725292061076,3.80940437,132.95,132.92,3.81923912]
[1725292061981,0.04840437,132.95,132.92,0.05753912]
[1725292062384,3.7615,132.93,132.92,0.05753912]
[1725292062881,3.7623,132.91,132.88,3.7628]
[1725292063281,3.7623,132.91,132.87,5.19962876]
[1725292063483,3.7623,132.91,132.87,8.96252876]
[1725292063786,3.7623,132.91,132.87,5.1219]
[1725292063985,3.7623,132.91,132.88,0.04601083]
[1725292063986,0.05551742,132.9,132.88,0.04601083]
[1725292064188,3.81791742,132.9,132.88,0.04601083]
[1725292064486,0.05551742,132.9,132.88,0.04601083]
[1725292065092,3.7633,132.87,132.81,38.862]
[1725292065289,3.75169191,132.88,132.81,38.862]
[1725292065486,3.7639,132.85,132.82,3.7646]
[1725292065687,3.73476019,132.86,132.79,36.08]
[1725292065889,1.463,132.88,132.79,36.08]
[1725292066194,3.7642,132.84,132.8,3.765]
[1725292066385,3.7642,132.84,132.79,36.08]
[1725292066688,3.81842477,132.85,132.79,36.08]
[1725292067085,0.05452477,132.85,132.82,3.7644]
[1725292067785,3.81832477,132.85,132.82,3.7644]
[1725292069691,0.05452477,132.85,132.83,3.7642]
[1725292070890,0.05452477,132.85,132.82,3.7645]
[1725292071289,0.05452477,132.85,132.84,3.7641]
[1725292072993,1.4178,132.92,132.86,3.7634]
[1725292073191,10.43715696,133.13,132.86,3.7634]
[1725292073192,90.220096,133.07,132.86,36.08]
[1725292073392,36.08,133.02,132.91,36.08]
[1725292073693,36.08,133.02,132.89,36.08]
[1725292073887,0.05436244,132.97,132.94,0.05016507]
[1725292074089,0.05436244,132.97,132.93,3.7615]
[1725292074090,3.78312255,132.96,132.93,3.7615]
[1725292074301,0.05436244,132.97,132.94,0.05452477]
[1725292074794,3.76515597,132.97,132.94,0.05452477]
[1725292075489,3.7607,132.96,132.94,0.05452477]
[1725292076595,36.08,132.95,132.83,39.7953065]
[1725292076791,36.08,132.92,132.83,39.7953065]
[1725292076987,36.08,132.94,132.88,3.7627]
[1725292077493,36.08,132.94,132.83,39.7953065]
[1725292077494,3.7623,132.91,132.87,3.763]
[1725292077793,0.05228514,132.92,132.83,39.7953065]
[1725292077794,3.68885643,132.9,132.83,39.7953065]
[1725292077996,36.13228514,132.92,132.83,39.7953065]
[1725292078197,0.04760089,132.88,132.83,39.7953065]
[1725292078601,0.04760089,132.88,132.85,3.7635]
[1725292079489,0.04760089,132.88,132.83,39.7953065]
[1725292079490,0.04760089,132.88,132.86,3.7634]
[1725292080493,3.81070089,132.88,132.85,3.7637]
[1725292081000,3.7633,132.87,132.81,38.9195]
[1725292081203,0.04760089,132.88,132.81,38.9195]
[1725292081395,0.04760089,132.88,132.81,42.7477661]
[1725292081594,0.04760089,132.88,132.81,38.9195]
[1725292081891,1.3987,132.89,132.81,42.66310325]
[1725292082092,0.05514715,132.86,132.81,42.66310325]
[1725292082393,0.05514715,132.86,132.84,3.7639]
[1725292082600,0.05514715,132.86,132.81,42.66310325]
[1725292083104,0.05514715,132.86,132.85,3.7638]
[1725292083893,0.05514715,132.86,132.83,36.08]
[1725292084202,0.05514715,132.86,132.81,42.66310325]
[1725292084397,0.05514715,132.86,132.82,3.7644]
[1725292084791,3.7639,132.85,132.82,3.7644]
[1725292084992,0.05514715,132.86,132.81,6.6043]
[1725292085202,0.05514715,132.86,132.81,38.9195]
[1725292085597,0.05514715,132.86,132.83,3.7642]
[1725292085997,0.05514715,132.86,132.77,150.5]
[1725292086198,0.04982214,132.83,132.78,1.38302634]
[1725292086596,0.04982214,132.83,132.8,3.765]
[1725292087102,0.04982214,132.83,132.77,193.09000715]
[1725292087296,0.04982214,132.83,132.78,1.38303843]
[1725292087802,0.04982214,132.83,132.79,36.08]
[1725292089499,0.04982214,132.83,132.81,3.7648]
[1725292089895,0.04982214,132.83,132.77,193.09000715]
[1725292090096,0.04982214,132.83,132.79,3.7652]
[1725292090292,3.81432214,132.83,132.79,3.7652]
[1725292090499,3.81432214,132.83,132.77,193.09000715]
[1725292091500,3.81432214,132.83,132.8,3.765]
[1725292091695,0.04982214,132.83,132.77,193.09000715]
[1725292092301,1.3831,132.91,132.81,36.08]
[1725292092508,5.15145089,132.91,132.81,36.08]
[1725292092700,1.3831,132.91,132.81,36.08]
[1725292093001,5.1232165,132.91,132.81,36.08]
[1725292093205,1.3831,132.91,132.81,36.08]
[1725292093506,0.05157688,132.87,132.85,0.04982214]
[1725292093897,0.05157688,132.87,132.85,3.81352214]
[1725292094297,0.05157688,132.87,132.85,0.04982214]
[1725292095905,3.7635,132.86,132.85,0.04982214]
[1725292097309,3.7635,132.86,132.77,193.09000715]
[1725292097310,36.08,132.86,132.77,157.01000715]
[1725292097507,38.8195,132.86,132.77,153.3173]
[1725292098002,3.7646,132.82,132.79,3.7653]
[1725292098202,3.82022799,132.82,132.79,3.7653]
[1725292098402,3.7651,132.81,132.78,3.7657]
[1725292098602,0.05562799,132.82,132.77,153.3173]
[1725292099104,3.82042799,132.82,132.79,3.7654]
[1725292100210,3.7649,132.81,132.78,3.7657]
[1725292102212,3.82042799,132.82,132.79,3.7655]
[1725292102406,0.05562799,132.82,132.77,150.5]
[1725292102807,0.05562799,132.82,132.81,3.7649]
[1725292105814,3.7631,132.88,132.85,3.7636]
[1725292106207,1.3946,132.9,132.82,3.76994937]
[1725292106413,3.7627,132.89,132.85,3.7635]
[1725292106815,0.05725129,132.88,132.86,0.04766172]
[1725292107020,0.05725129,132.88,132.86,3.81106172]
[1725292107420,0.05725129,132.88,132.86,0.04766172]
[1725292108413,0.05725129,132.88,132.86,3.81116172]
[1725292108815,1.3961,132.96,132.86,0.04766172]
[1725292109120,1.461,132.95,132.85,36.08]
[1725292109419,3.78585088,133.0,132.94,36.08]
[1725292109619,90.220096,133.07,132.94,36.08]
[1725292109620,8.8879,133.05,132.95,1.3582]
[1725292109918,0.0523157,133.01,132.99,0.05352159]
[1725292110419,3.7598,133.0,132.99,0.05352159]
[1725292111215,39.83046901,133.0,132.91,3.69894848]
[1725292111419,39.83046901,133.0,132.9,38.4348]
[1725292111616,39.83046901,133.0,132.93,3.7613]
[1725292111617,3.7601,132.98,132.93,3.7613]
[1725292112123,0.05083234,132.97,132.94,0.05663704]
[1725292114227,0.05083234,132.97,132.95,3.7609]
[1725292114422,0.05083234,132.97,132.94,0.05663704]
[1725292114821,0.05083234,132.97,132.95,3.7607]
[1725292121030,0.05083234,132.97,132.96,3.7607]
[1725292129931,0.05083234,132.97,132.94,0.05663704]
[1725292130936,3.81133234,132.97,132.94,0.05663704]
[1725292131134,0.05083234,132.97,132.94,0.05663704]
[1725292131330,3.7609,132.96,132.94,0.05663704]
[1725292131526,0.05083234,132.97,132.94,0.05663704]
[1725292132030,0.05083234,132.97,132.95,3.7608]
[1725292134940,3.81133234,132.97,132.94,3.81773704]
[1725292135150,0.05083234,132.97,132.94,0.05663704]
[1725292136639,0.05083234,132.97,132.95,3.761]
[1725292136842,0.05083234,132.97,132.94,0.05663704]
[1725292137145,0.05083234,132.97,132.95,3.761]
[1725292137638,0.05083234,132.97,132.96,3.7607]
[1725292140142,7.522,133.1,132.96,57.76]
[1725292140352,11.29775729,133.1,133.03,28.88]
[1725292140542,11.29775729,133.1,133.03,32.69975327]
[1725292141051,0.04901592,133.08,133.05,3.81119936]
[1725292141550,0.04901592,133.08,133.05,0.05319936]
[1725292141844,3.71636855,133.07,133.05,0.05319936]
[1725292142048,0.04901592,133.08,133.05,0.05319936]
[1725292142449,3.80651592,133.08,133.05,3.81129936]
[1725292142667,3.74116939,133.07,133.05,0.05319936]
[1725292144651,3.80651592,133.08,133.05,0.05319936]
[1725292144652,3.7578,133.06,133.05,0.05319936]
[1725292144849,3.71223508,133.06,133.05,0.05319936]
[1725292145549,0.04901592,133.08,133.05,0.05319936]
[1725292145946,3.7577,133.07,133.05,0.05319936]
[1725292146146,3.80625004,133.08,133.05,0.05319936]
[1725292146345,3.80641592,133.08,133.05,3.81129936]
[1725292146547,7.5482423,133.08,133.05,3.81129936]
[1725292146847,3.80631592,133.08,133.05,3.81119936]
[1725292147053,7.58046097,133.08,133.05,3.81119936]
[1725292147256,3.80631592,133.08,133.05,3.81119936]
[1725292147549,7.6529901,133.08,133.05,3.81119936]
[1725292147751,3.80631592,133.08,133.05,3.81119936]
[1725292148345,7.63795815,133.08,133.05,3.81119936]
[1725292148539,3.80631592,133.08,133.05,3.81119936]
[1725292149944,3.7576,133.07,133.05,3.81119936]
[1725292150545,3.7576,133.07,133.02,36.06]
[1725292150546,0.04901592,133.08,132.98,37.4616]
[1725292150842,1.3453,133.06,132.98,39.86421352]
[1725292151049,3.7586,133.04,133.01,3.7592]
[1725292151446,3.7591,133.02,132.99,3.7597]
[1725292151748,3.7591,133.02,133.01,0.05511804]
[1725292152248,7.44859188,133.02,133.01,0.05511804]
[1725292152448,3.7591,133.02,133.01,0.05511804]
[1725292153157,3.7595,133.01,133.0,0.05179196]
[1725292155653,3.7592,133.02,133.0,0.05179196]
[1725292157557,3.7593,133.01,133.0,0.05179196]
[1725292160260,3.67077663,133.02,132.95,3.7608]
[1725292160556,36.06,133.03,132.95,7.48458016]
[1725292160953,3.7602,132.98,132.95,7.48458016]
[1725292161259,3.80855605,132.98,132.95,7.48458016]
[1725292161758,0.04835605,132.98,132.96,36.06]
[1725292161950,1.3453,133.06,132.96,36.06]
[1725292162155,1.3453,133.06,133.02,3.7589]
[1725292162356,1.3453,133.06,133.0,36.06]
[1725292162557,1.3453,133.06,132.95,39.78378016]
[1725292162760,3.7597,133.0,132.95,39.78378016]
[1725292162955,0.05626547,132.99,132.96,0.05355476]
[1725292163359,0.05626547,132.99,132.97,3.7601]
[1725292164955,0.05626547,132.99,132.98,3.7601]
[1725292165260,0.05626547,132.99,132.98,32.6301]
[1725292165658,28.87,132.99,132.73,3.48532889]
[1725292165866,28.87,132.94,132.86,1.458]
[1725292166062,3.7626,132.9,132.86,5.28712344]
[1725292166268,7.43610774,132.9,132.86,5.28712344]
[1725292166459,3.67350774,132.9,132.86,5.28712344]
[1725292166657,28.87,132.94,132.86,1.458]
[1725292166658,3.81195818,132.89,132.86,1.458]
[1725292166957,0.04905818,132.89,132.86,1.458]
[1725292167164,0.04905818,132.89,132.83,28.87]
[1725292167362,0.04905818,132.89,132.82,3.84227935]
[1725292168361,3.764,132.85,132.82,3.84227935]
[1725292168564,3.81889794,132.85,132.81,1.1736]
[1725292168953,3.81889794,132.85,132.81,4.9881467]